bitfinex/quotes_BTCUSD_20250610
["timestamp","ask_amount","ask_price","bid_price","bid_amount"]
[1749579524515,0.52179849,108750.0,108740.0,0.5873134]
[1749579524948,0.50629849,108750.0,108740.0,0.6189134]
[1749579525153,0.34919489,108750.0,108740.0,0.6189134]
[1749579525367,0.37678007,108750.0,108740.0,0.6189134]
[1749579525577,0.37678007,108750.0,108740.0,0.71986143]
[1749579525578,0.37677982,108750.0,108740.0,0.71986143]
[1749579525790,0.56068862,108750.0,108740.0,0.71986143]
[1749579525997,0.22068862,108750.0,108740.0,0.71986143]
[1749579526224,0.20229867,108750.0,108740.0,0.71986143]
[1749579526424,0.19310344,108750.0,108740.0,0.71986143]
[1749579527809,0.19310344,108750.0,108740.0,0.71052864]
[1749579529211,0.19310344,108750.0,108740.0,0.71968183]
[1749579529968,0.02758534,108750.0,108740.0,0.71968183]
[1749579530183,0.21149338,108750.0,108740.0,0.71968183]
[1749579530622,0.22068878,108750.0,108740.0,0.71968183]
[1749579531575,0.01839003,108750.0,108740.0,0.71968183]
[1749579532173,0.02758534,108750.0,108740.0,0.71968183]
[1749579532840,0.01839003,108750.0,108740.0,0.71968183]
[1749579533043,0.01838953,108750.0,108740.0,0.71968183]
[1749579533250,0.02758459,108750.0,108740.0,0.71968183]
[1749579534076,0.01838953,108750.0,108740.0,1.41770211]
[1749579534492,0.00919464,108750.0,108740.0,1.41770211]
[1749579534723,0.01838945,108750.0,108740.0,0.62806659]
[1749579534932,0.02758442,108750.0,108740.0,0.62806659]
[1749579535563,0.01838945,108750.0,108740.0,0.62806659]
[1749579535775,0.03677956,108750.0,108740.0,0.62806659]
[1749579535920,0.02758442,108750.0,108740.0,0.62806659]
[1749579536547,0.01838945,108750.0,108740.0,0.62806659]
[1749579536750,0.03677948,108750.0,108740.0,0.62806659]
[1749579537148,0.02758434,108750.0,108740.0,0.62806659]
[1749579538231,0.03677931,108750.0,108740.0,0.62806659]
[1749579538439,0.04597445,108750.0,108740.0,0.62806659]
[1749579538644,0.04597445,108750.0,108740.0,0.75621462]
[1749579539333,0.03677931,108750.0,108740.0,0.75621462]
[1749579539563,0.04597445,108750.0,108740.0,0.75621462]
[1749579540160,0.02758434,108750.0,108740.0,0.75621462]
[1749579540470,0.04597488,108750.0,108740.0,0.75621462]
[1749579540680,0.04597479,108750.0,108740.0,0.75621462]
[1749579540897,0.22068819,108750.0,108740.0,0.75621462]
[1749579541397,0.03678015,108750.0,108740.0,0.75621462]
[1749579543485,0.04597555,108750.0,108740.0,0.75621462]
[1749579543703,0.0367799,108750.0,108740.0,0.75621462]
[1749579543955,0.01119311,108770.0,108760.0,0.0303]
[1749579544133,0.02038631,108770.0,108760.0,0.30835028]
[1749579544336,0.21345408,108770.0,108760.0,0.30835028]
[1749579544752,0.002,108770.0,108760.0,1.57006629]
[1749579544974,0.002,108770.0,108760.0,1.79762216]
[1749579545188,0.002,108770.0,108760.0,2.06913453]
[1749579545621,0.002,108770.0,108760.0,2.19842857]
[1749579545831,0.002,108770.0,108760.0,2.19742857]
[1749579546048,0.002,108770.0,108760.0,2.19942857]
[1749579546471,0.002,108770.0,108760.0,2.07113453]
[1749579546733,0.002,108770.0,108760.0,2.19934114]
[1749579546951,0.002,108770.0,108760.0,2.38523227]
[1749579547166,0.002,108770.0,108760.0,2.39442674]
[1749579547407,0.002,108770.0,108760.0,2.27541443]
[1749579547901,0.002,108770.0,108760.0,1.86622013]
[1749579548169,0.002,108770.0,108760.0,1.87541451]
[1749579548374,0.002,108770.0,108760.0,2.27541451]
[1749579548597,0.002,108770.0,108760.0,2.30589236]
[1749579548809,0.002,108770.0,108760.0,2.28460881]
[1749579549026,0.002,108770.0,108760.0,2.27541451]
[1749579549235,0.002,108770.0,108760.0,2.28460881]
[1749579549445,0.002,108770.0,108760.0,2.29380302]
[1749579549665,0.002,108770.0,108760.0,2.43099745]
[1749579549888,0.002,108770.0,108760.0,2.48099745]
[1749579550096,0.002,108770.0,108760.0,2.35299655]
[1749579550537,0.002,108770.0,108760.0,2.35099655]
[1749579550749,0.002,108770.0,108760.0,2.35499655]
[1749579551181,0.002,108770.0,108760.0,2.37799655]
[1749579552083,0.002,108770.0,108760.0,2.42799655]
[1749579552503,0.002,108770.0,108760.0,2.43199655]
[1749579552962,0.00052988,108770.0,108760.0,2.43199655]
[1749579553833,0.00055698,108790.0,108780.0,0.44574085]
[1749579554054,0.00055698,108790.0,108780.0,1.32999453]
[1749579554482,0.00055698,108790.0,108780.0,1.42127851]
[1749579554955,0.00055698,108790.0,108780.0,1.42227851]
[1749579555822,0.00055698,108790.0,108780.0,0.72425823]
[1749579556057,0.00055698,108790.0,108780.0,1.33199453]
[1749579556723,0.00055698,108790.0,108780.0,1.42322113]
[1749579556933,0.00974824,108790.0,108780.0,1.42322113]
[1749579557662,0.00055698,108790.0,108780.0,1.42322113]
[1749579559773,0.00055698,108790.0,108780.0,1.71502113]
[1749579565481,0.00055698,108790.0,108780.0,1.01700085]
[1749579565708,0.00055698,108790.0,108780.0,1.71502113]
[1749579566136,0.00055698,108790.0,108780.0,1.01700085]
[1749579566357,0.00055698,108790.0,108780.0,1.71502113]
[1749579567627,0.00055698,108790.0,108780.0,1.62014113]
[1749579567841,0.00974824,108790.0,108780.0,1.32576085]
[1749579568057,0.00055698,108790.0,108780.0,2.06467357]
[1749579568284,0.00055698,108790.0,108780.0,3.02412916]
[1749579568497,0.00055698,108790.0,108780.0,2.93290256]
[1749579568706,0.00055698,108790.0,108780.0,3.05155363]
[1749579568924,0.00055698,108790.0,108780.0,3.06993825]
[1749579569132,0.00055698,108790.0,108780.0,3.06074598]
[1749579569350,0.00055698,108790.0,108780.0,3.45974598]
[1749579569614,0.00055698,108790.0,108780.0,3.46374598]
[1749579569832,0.00055698,108790.0,108780.0,3.07793825]
[1749579570065,0.00055698,108790.0,108780.0,3.06874598]
[1749579570350,0.00055698,108790.0,108780.0,3.05955363]
[1749579570573,0.00055698,108790.0,108780.0,3.46874607]
[1749579571227,0.00055698,108790.0,108780.0,3.4687459]
[1749579571466,0.002,108810.0,108800.0,0.94755537]
[1749579571693,0.002,108810.0,108800.0,2.97009917]
[1749579571932,0.002,108810.0,108800.0,2.20836223]
[1749579572152,0.002,108810.0,108800.0,2.43225796]
[1749579572375,0.002,108810.0,108800.0,2.81387596]
[1749579572590,0.002,108810.0,108800.0,2.82506679]
[1749579572803,0.002,108810.0,108800.0,2.74749404]
[1749579573028,0.002,108810.0,108800.0,2.60647943]
[1749579574162,0.002,108810.0,108800.0,2.61567052]
[1749579574384,0.002,108810.0,108800.0,2.60647943]
[1749579574606,0.002,108810.0,108800.0,2.61567052]
[1749579574830,0.002,108810.0,108800.0,2.60647943]
[1749579575255,0.002,108810.0,108800.0,2.47867389]
[1749579575484,0.002,108810.0,108800.0,2.79973796]
[1749579575699,0.002,108810.0,108800.0,2.79973805]
[1749579575910,0.002,108810.0,108800.0,1.98285905]
[1749579576137,0.002,108810.0,108800.0,2.75892843]
[1749579576354,0.002,108810.0,108800.0,2.81811926]
[1749579576566,0.002,108810.0,108800.0,2.82731001]
[1749579576791,0.002,108810.0,108800.0,2.81811926]
[1749579576997,0.002,108810.0,108800.0,2.79859711]
[1749579577213,0.002,108810.0,108800.0,2.76811926]
[1749579577837,0.002,108810.0,108800.0,3.46613954]
[1749579577969,0.002,108810.0,108800.0,3.34728111]
[1749579579452,0.00053594,108810.0,108800.0,3.34728111]
[1749579579645,0.00053594,108810.0,108800.0,3.39728111]
[1749579580428,0.00053594,108810.0,108800.0,3.44728111]
[1749579581044,0.00053594,108810.0,108800.0,3.5108503]
[1749579581251,0.00053594,108810.0,108800.0,3.6285703]
[1749579581455,0.002,108830.0,108820.0,0.74]
[1749579581652,0.06066465,108830.0,108820.0,1.25111907]
[1749579581879,0.05147601,108830.0,108820.0,1.30936822]
[1749579582090,0.05147601,108830.0,108820.0,1.70936822]
[1749579582091,0.0174,108830.0,108820.0,1.70936822]
[1749579582318,0.02658805,108830.0,108820.0,1.70936822]
[1749579582536,0.06985337,108830.0,108820.0,1.72390907]
[1749579582773,0.06985328,108830.0,108820.0,1.72390907]
[1749579582991,0.04228805,108830.0,108820.0,1.72390907]
[1749579583201,0.05147635,108830.0,108820.0,1.72390907]
[1749579583412,0.06066465,108830.0,108820.0,1.72590907]
[1749579583624,0.06985329,108830.0,108820.0,1.72790907]
[1749579583855,0.0698532,108830.0,108820.0,1.72790907]
[1749579584063,0.05147627,108830.0,108820.0,1.72790907]
[1749579584262,0.06985312,108830.0,108820.0,1.72790907]
[1749579585418,0.06066457,108830.0,108820.0,1.72790907]
[1749579585638,0.06985304,108830.0,108820.0,1.72790907]
[1749579586307,0.03577627,108830.0,108820.0,1.43610907]
[1749579587171,0.04496465,108830.0,108820.0,1.43610907]
[1749579588301,0.05415312,108830.0,108820.0,1.43610907]
[1749579588939,0.03577627,108830.0,108820.0,1.43610907]
[1749579589161,0.002,108830.0,108820.0,2.13412935]
[1749579589409,0.01118788,108830.0,108820.0,2.13412935]
[1749579589875,0.02037584,108830.0,108820.0,2.14932935]
[1749579590116,0.002,108830.0,108820.0,2.14932935]
[1749579590337,0.002,108830.0,108820.0,2.16472935]
[1749579590557,0.00047441,108830.0,108820.0,2.07331453]
[1749579590996,0.00047441,108830.0,108820.0,2.55493266]
[1749579591219,0.00047441,108830.0,108820.0,2.58250009]
[1749579591438,0.00047441,108830.0,108820.0,2.89430009]
[1749579591868,0.0001127,108830.0,108820.0,2.81633442]
[1749579592091,0.0001127,108830.0,108820.0,2.86433442]
[1749579592296,0.0001127,108830.0,108820.0,2.86833442]
[1749579592784,0.0001127,108830.0,108820.0,2.81633442]
[1749579593002,0.0001127,108830.0,108820.0,2.86633442]
[1749579593227,0.0001127,108830.0,108820.0,2.17131414]
[1749579593435,0.0001127,108830.0,108820.0,2.86933442]
[1749579593667,0.0001127,108830.0,108820.0,2.79625179]
[1749579593908,0.0001127,108830.0,108820.0,2.80544068]
[1749579594343,0.0001127,108830.0,108820.0,2.79625179]
[1749579594770,0.0001127,108830.0,108820.0,2.80544085]
[1749579594981,0.0001127,108830.0,108820.0,2.81462974]
[1749579595193,0.0001127,108830.0,108820.0,2.80544085]
[1749579595416,0.0001127,108830.0,108820.0,2.78706281]
[1749579595627,0.0001127,108830.0,108820.0,2.79625187]
[1749579595853,0.21719818,108860.0,108850.0,0.01454085]
[1749579596064,0.23289818,108860.0,108850.0,0.29213198]
[1749579596555,0.23289818,108860.0,108850.0,0.27759113]
[1749579598053,0.23289818,108860.0,108850.0,0.28683581]
[1749579598260,0.21719818,108860.0,108850.0,0.28683581]
[1749579599402,0.23379818,108860.0,108850.0,0.28683581]
[1749579599640,0.05007213,108860.0,108850.0,0.28683581]
[1749579599861,0.23379434,108860.0,108850.0,0.18283113]
[1749579600132,0.23379434,108860.0,108850.0,0.27759113]
[1749579600773,0.0317,108860.0,108850.0,0.28676978]
[1749579600987,0.04088543,108860.0,108850.0,0.28676978]
[1749579601231,0.05007103,108860.0,108850.0,0.28676978]
[1749579601452,0.05925671,108860.0,108850.0,0.28676978]
[1749579601917,0.06844256,108860.0,108850.0,0.28676978]
[1749579602122,0.05184256,108860.0,108850.0,0.28676978]
[1749579602331,0.04265671,108860.0,108850.0,0.28676978]
[1749579602928,0.30276308,108870.0,108850.0,0.28676978]
[1749579603164,0.30276308,108870.0,108860.0,0.16458317]
[1749579603607,0.30276308,108870.0,108860.0,0.25934317]
[1749579603826,0.30276308,108870.0,108860.0,0.65934317]
[1749579604969,0.30476308,108870.0,108860.0,0.65934317]
[1749579605628,0.30476308,108870.0,108860.0,0.56458317]
[1749579605947,0.30476308,108870.0,108860.0,0.65934317]
[1749579606170,0.32086308,108870.0,108860.0,0.56458317]
[1749579606385,0.32086308,108870.0,108860.0,0.65934317]
[1749579606814,0.32086308,108870.0,108860.0,0.56458317]
[1749579607026,0.32086308,108870.0,108860.0,0.65934317]
[1749579608357,0.32086308,108870.0,108860.0,0.56458317]
[1749579608569,0.32086308,108870.0,108860.0,0.56798977]
[1749579608811,0.32086308,108870.0,108860.0,0.49476]
[1749579610115,0.28186308,108870.0,108860.0,0.49476]
[1749579613093,0.28186308,108870.0,108860.0,0.56798977]
[1749579613525,0.28186308,108870.0,108860.0,0.4]
[1749579613739,0.3311752,108870.0,108860.0,0.4]
[1749579614417,0.33233714,108870.0,108860.0,0.4]
[1749579615955,0.28302502,108870.0,108860.0,0.4]
[1749579616646,0.22320815,108860.0,108850.0,0.16798977]
[1749579616856,0.22320815,108860.0,108850.0,0.25934317]
[1749579617075,0.22320815,108860.0,108850.0,0.65934317]
[1749579617290,0.20239409,108860.0,108850.0,0.65934317]
[1749579618409,0.18127994,108860.0,108850.0,0.65934317]
[1749579619579,0.21157994,108860.0,108850.0,0.65934317]
[1749579620489,0.28961665,108870.0,108850.0,0.6018134]
[1749579620716,0.03674282,108860.0,108850.0,0.61823773]
[1749579620952,0.22965114,108860.0,108850.0,0.70959113]
[1749579621179,0.22046579,108860.0,108850.0,0.70959113]
[1749579621397,0.21128019,108860.0,108850.0,0.70959113]
[1749579621613,0.20209434,108860.0,108850.0,0.70959113]
[1749579621834,0.0275573,108860.0,108850.0,0.70959113]
[1749579622297,0.01837128,108860.0,108850.0,0.70959113]
[1749579622540,0.03674333,108860.0,108850.0,0.70959113]
[1749579622772,0.24034638,108870.0,108860.0,0.0157]
[1749579622773,0.25871665,108870.0,108860.0,0.0157]
[1749579622992,0.25871665,108870.0,108860.0,0.1233534]
[1749579623211,0.25871665,108870.0,108860.0,0.21483113]
[1749579624365,0.21971665,108870.0,108860.0,0.19666821]
[1749579624639,0.22171665,108870.0,108860.0,0.22714606]
[1749579624843,0.22171665,108870.0,108860.0,0.19666821]
[1749579625522,0.22171665,108870.0,108860.0,0.18036821]
[1749579626428,0.22171665,108870.0,108860.0,0.58036821]
[1749579627332,0.22171665,108870.0,108860.0,0.5070534]
[1749579628014,0.21253164,108870.0,108860.0,0.5070534]
[1749579631158,0.21253164,108870.0,108860.0,0.4913534]
[1749579631392,0.18863164,108870.0,108860.0,0.56467485]
[1749579631628,0.20513164,108870.0,108860.0,0.65939485]
[1749579632338,0.17353164,108870.0,108860.0,0.65939485]
[1749579632559,0.18863164,108870.0,108860.0,0.65939485]
[1749579633425,0.20513164,108870.0,108860.0,0.65939485]
[1749579633868,0.20513164,108870.0,108860.0,0.56467485]
[1749579634081,0.20513164,108870.0,108860.0,0.65939485]
[1749579635426,0.20513164,108870.0,108860.0,0.5860734]
[1749579638443,0.16613164,108870.0,108860.0,0.65941776]
[1749579638876,0.16613164,108870.0,108860.0,0.56469776]
[1749579639071,0.16613164,108870.0,108860.0,0.65941776]
[1749579640456,0.16613164,108870.0,108860.0,0.56469776]
[1749579640967,0.16613164,108870.0,108860.0,0.49472]
[1749579641397,0.16613164,108870.0,108860.0,0.4]
[1749579643995,0.19290815,108860.0,108850.0,0.16806436]
[1749579644206,0.54790815,108860.0,108850.0,0.25941776]
[1749579644415,0.20790815,108860.0,108850.0,0.65941776]
[1749579644634,0.22450815,108860.0,108850.0,0.65941776]
[1749579645537,0.52550815,108860.0,108850.0,0.65941776]
[1749579645975,0.52623382,108860.0,108850.0,0.65941776]
[1749579646198,0.19541976,108860.0,108850.0,0.65941776]
[1749579651823,0.19541976,108860.0,108850.0,0.56469776]
[1749579652078,0.19541976,108860.0,108850.0,0.65941776]
[1749579652736,0.15641976,108860.0,108850.0,0.65941776]
[1749579655361,0.15641976,108860.0,108850.0,0.56469776]
[1749579655793,0.15641976,108860.0,108850.0,0.4913534]
[1749579658435,0.13981976,108860.0,108850.0,0.4913534]
[1749579658662,0.13981976,108860.0,108850.0,0.0913534]
[1749579659099,0.13981976,108860.0,108850.0,0.4913534]
[1749579659974,0.12681976,108860.0,108850.0,0.4913534]
[1749579661089,0.11181976,108860.0,108850.0,0.4913534]
[1749579661755,0.12100561,108860.0,108850.0,0.4913534]
[1749579661990,0.12100561,108860.0,108850.0,0.59579776]
[1749579661991,0.21200569,108860.0,108850.0,0.59579776]
[1749579662211,0.20281984,108860.0,108850.0,0.59579776]
[1749579666388,0.54281984,108860.0,108850.0,0.59579776]
[1749579666831,0.50381984,108860.0,108850.0,0.59579776]
[1749579667283,0.5221918,108860.0,108850.0,0.59579776]
[1749579669863,0.5221918,108860.0,108850.0,0.5224534]
[1749579670069,0.1821918,108860.0,108850.0,0.5224534]
[1749579673213,0.1821918,108860.0,108850.0,0.6171734]
[1749579674108,0.1431918,108860.0,108850.0,0.6905839]
[1749579675764,0.15237791,108860.0,108850.0,0.6905839]
[1749579676026,0.47253156,108870.0,108860.0,0.0308]
[1749579676234,0.47253156,108870.0,108860.0,0.29027986]
[1749579677543,0.13253156,108870.0,108860.0,0.29027986]
[1749579677986,0.13453156,108870.0,108860.0,0.29027986]
[1749579679558,0.13453156,108870.0,108860.0,0.69027986]
[1749579682320,0.09553156,108870.0,108860.0,0.69027986]
[1749579686098,0.09553156,108870.0,108860.0,0.59555986]
[1749579686320,0.09553156,108870.0,108860.0,0.69023986]
[1749579686747,0.12773156,108870.0,108860.0,0.56475986]
[1749579686961,0.12773156,108870.0,108860.0,0.4]
[1749579687180,0.19290815,108860.0,108850.0,0.07340646]
[1749579687396,0.22510815,108860.0,108850.0,0.16475986]
[1749579687618,0.19292587,108850.0,108840.0,0.17340646]
[1749579687826,0.22512587,108850.0,108840.0,0.35943986]
[1749579688276,0.20882587,108850.0,108840.0,0.75943986]
[1749579689380,0.21212587,108850.0,108840.0,0.75943986]
[1749579689600,0.22131265,108850.0,108840.0,0.6860334]
[1749579690245,0.22131265,108850.0,108840.0,0.5913534]
[1749579690459,0.22131265,108850.0,108840.0,0.5]
[1749579691340,0.22131265,108850.0,108840.0,0.1]
[1749579691765,0.22131265,108850.0,108840.0,0.5]
[1749579692415,0.65599265,108850.0,108840.0,0.5]
[1749579692872,0.68356565,108850.0,108840.0,0.5]
[1749579693081,0.77277844,108850.0,108840.0,0.5]
[1749579693301,0.77277844,108850.0,108840.0,0.1]
[1749579693716,0.77477844,108850.0,108840.0,0.1]
[1749579693930,0.68209844,108850.0,108840.0,0.1]
[1749579694136,0.80161844,108850.0,108840.0,0.1]
[1749579695889,0.68209844,108850.0,108840.0,0.1]
[1749579696115,0.80165844,108850.0,108840.0,0.1]
[1749579696329,0.77677844,108850.0,108840.0,0.1]
[1749579696555,0.67556565,108850.0,108840.0,0.1]
[1749579701830,0.70044565,108850.0,108840.0,0.1]
[1749579706059,0.58088565,108850.0,108840.0,0.1]
[1749579706275,0.70044565,108850.0,108840.0,0.1]
[1749579706484,0.78886244,108850.0,108840.0,0.1]
[1749579709688,0.70044565,108850.0,108840.0,0.1]
[1749579710342,0.58088565,108850.0,108840.0,0.1]
[1749579710563,0.70044565,108850.0,108840.0,0.1]
[1749579714862,0.58088565,108850.0,108840.0,0.1]
[1749579715074,0.66820565,108850.0,108840.0,0.1]
[1749579715282,0.75656844,108850.0,108840.0,0.1]
[1749579718325,0.63704844,108850.0,108840.0,0.1]
[1749579718536,0.75656844,108850.0,108840.0,0.1]
[1749579720642,0.66820565,108850.0,108840.0,0.1]
[1749579726326,0.66820565,108850.0,108840.0,0.1162]
[1749579728600,0.66820565,108850.0,108840.0,0.1]
[1749579732732,0.6827465,108850.0,108840.0,0.1]
[1749579735435,0.6551735,108850.0,108840.0,0.1]
[1749579735642,0.74223307,108850.0,108840.0,0.1]
[1749579738392,0.91528647,108850.0,108840.0,0.1]
[1749579738611,0.79576647,108850.0,108840.0,0.1]
[1749579738843,0.91524647,108850.0,108840.0,0.1]
[1749579739052,0.91324647,108850.0,108840.0,0.1]
[1749579739275,0.7444869,108850.0,108840.0,0.1]
[1749579739488,0.7424869,108850.0,108840.0,0.1]
[1749579739703,0.7464869,108850.0,108840.0,0.1]
[1749579740068,0.7484869,108850.0,108840.0,0.1]
[1749579740287,0.8398403,108850.0,108840.0,0.1]
[1749579741514,0.7203603,108850.0,108840.0,0.1]
[1749579741720,0.8398403,108850.0,108840.0,0.1]
[1749579741995,0.6571335,108850.0,108840.0,0.1161]
[1749579744934,0.6571335,108850.0,108840.0,0.1]
[1749579748420,0.6571335,108850.0,108840.0,0.1152]
[1749579748849,0.5376535,108850.0,108840.0,0.1152]
[1749579749058,0.6322935,108850.0,108840.0,0.1316]
[1749579750257,0.52311265,108850.0,108840.0,0.1316]
[1749579750487,0.61775265,108850.0,108840.0,0.1316]
[1749579751377,0.52311265,108850.0,108840.0,0.1316]
[1749579754192,0.52311265,108850.0,108840.0,0.5316]
[1749579757103,0.52311265,108850.0,108840.0,0.1316]
[1749579757727,0.52311265,108850.0,108840.0,0.5316]
[1749579757946,0.60326014,108850.0,108840.0,0.5316]
[1749579758167,0.69790014,108850.0,108840.0,0.5152]
[1749579758804,0.61775265,108850.0,108840.0,0.5152]
[1749579759013,0.61775265,108850.0,108840.0,0.5308]
[1749579760095,0.52311265,108850.0,108840.0,0.5308]
[1749579761218,0.52311265,108850.0,108840.0,0.1308]
[1749579761685,0.52311265,108850.0,108840.0,0.5308]
[1749579764124,0.60325614,108850.0,108840.0,0.5308]
[1749579764614,0.52311265,108850.0,108840.0,0.2221534]
[1749579765091,0.52311265,108850.0,108840.0,0.6221534]
[1749579765340,0.18311265,108850.0,108840.0,0.6221534]
[1749579765592,0.18311265,108850.0,108840.0,0.69555986]
[1749579766449,0.19229935,108850.0,108840.0,0.69548008]
[1749579766665,0.03355924,108850.0,108840.0,0.98671385]
[1749579766876,0.22648511,108850.0,108840.0,0.98671385]
[1749579767127,0.04274602,108850.0,108840.0,0.98671385]
[1749579767547,0.04074602,108850.0,108840.0,0.98671385]
[1749579767758,0.04274602,108850.0,108840.0,0.98671385]
[1749579768020,0.23567206,108850.0,108840.0,0.98671385]
[1749579768245,0.23367206,108850.0,108840.0,0.98671385]
[1749579768483,0.22448587,108850.0,108840.0,0.91363113]
[1749579768695,0.22048587,108850.0,108840.0,0.8221534]
[1749579769311,0.22248587,108850.0,108840.0,0.8221534]
[1749579769525,0.22248587,108850.0,108840.0,0.91371397]
[1749579769727,0.22048587,108850.0,108840.0,0.91371397]
[1749579769939,0.02755983,108850.0,108840.0,0.91371397]
[1749579770136,0.22048587,108850.0,108840.0,0.91371397]
[1749579770350,0.01837305,108850.0,108840.0,0.91371397]
[1749579770582,0.02755924,108850.0,108840.0,0.91371397]
[1749579770789,0.03674602,108850.0,108840.0,0.91371397]
[1749579771004,0.04593297,108850.0,108840.0,0.91371397]
[1749579771626,0.03674602,108850.0,108840.0,0.91371397]
[1749579772288,0.04593297,108850.0,108840.0,0.91371397]
[1749579772497,0.22048587,108850.0,108840.0,0.91371397]
[1749579773332,0.02755983,108850.0,108840.0,0.91371397]
[1749579773557,0.03674678,108850.0,108840.0,0.91371397]
[1749579773762,0.02755983,108850.0,108840.0,0.91371397]
[1749579774181,0.21129892,108850.0,108840.0,0.91371397]
[1749579774407,0.02755983,108850.0,108840.0,0.91371397]
[1749579774634,0.0367467,108850.0,108840.0,0.91371397]
[1749579774879,0.22048587,108850.0,108840.0,0.91371397]
[1749579775112,0.00918619,108850.0,108840.0,0.88291397]
[1749579775337,0.0183728,108850.0,108840.0,1.50956495]
[1749579775569,0.18146735,108860.0,108840.0,1.50956495]
[1749579775794,0.18146735,108860.0,108850.0,0.29056115]
[1749579776459,0.18146735,108860.0,108850.0,0.69056115]
[1749579777569,0.18346735,108860.0,108850.0,0.69056115]
[1749579777993,0.18546735,108860.0,108850.0,0.69056115]
[1749579778628,0.18546735,108860.0,108850.0,0.69960715]
[1749579782219,0.18546735,108860.0,108850.0,0.69056115]
[1749579782442,0.18546735,108860.0,108850.0,0.59600115]
[1749579782642,0.14646735,108860.0,108850.0,0.69056115]
[1749579785907,0.15565312,108860.0,108850.0,0.69056115]
[1749579786937,0.49565312,108860.0,108850.0,0.69056115]
[1749579787407,0.02237179,108860.0,108850.0,0.69056115]
[1749579787594,0.02237128,108860.0,108850.0,0.69056115]
[1749579787801,0.0315573,108860.0,108850.0,0.69056115]
[1749579788851,0.03155722,108860.0,108850.0,0.69056115]
[1749579789057,0.02237128,108860.0,108850.0,0.69056115]
[1749579789464,0.03155722,108860.0,108850.0,0.6174134]
[1749579789665,0.08608886,108870.0,108860.0,0.0316]
[1749579789867,0.08608886,108870.0,108860.0,0.1229534]
[1749579791190,0.08608886,108870.0,108860.0,0.19610857]
[1749579791620,0.08808886,108870.0,108860.0,0.19610857]
[1749579791819,0.09008886,108870.0,108860.0,0.19610857]
[1749579792220,0.004,108870.0,108860.0,0.19610857]
[1749579792437,0.0223701,108870.0,108860.0,0.19610857]
[1749579792664,0.04073936,108870.0,108860.0,0.19610857]
[1749579793064,0.22444469,108870.0,108860.0,0.19610857]
[1749579793269,0.22444469,108870.0,108860.0,0.59610857]
[1749579793503,0.22244469,108870.0,108860.0,0.62658642]
[1749579793673,0.22244469,108870.0,108860.0,0.59610857]
[1749579794043,0.0111845,108870.0,108860.0,0.59610857]
[1749579794251,0.02955409,108870.0,108860.0,0.5229534]
[1749579794447,0.03673927,108870.0,108860.0,0.5229534]
[1749579794656,0.03673927,108870.0,108860.0,0.61451397]
[1749579795050,0.2204446,108870.0,108860.0,0.61451397]
[1749579795252,0.02755409,108870.0,108860.0,0.61451397]
[1749579795480,0.02755409,108870.0,108860.0,0.81451397]
[1749579796761,0.1722434,108880.0,108860.0,0.6913534]
[1749579796974,0.1722434,108880.0,108870.0,0.2908915]
[1749579798163,0.1732434,108880.0,108870.0,0.2908915]
[1749579799306,0.1742434,108880.0,108870.0,0.2908915]
[1749579799992,0.18342765,108880.0,108870.0,0.2908915]
[1749579800630,0.18342765,108880.0,108870.0,0.69087179]
[1749579801897,0.18342765,108880.0,108870.0,0.71825804]
[1749579803794,0.14442765,108880.0,108870.0,0.71825804]
[1749579804011,0.48442765,108880.0,108870.0,0.71825804]
[1749579804211,0.48442765,108880.0,108870.0,0.58095179]
[1749579804430,0.48442765,108880.0,108870.0,0.65917179]
[1749579805662,0.48442765,108880.0,108870.0,0.67437179]
[1749579806107,0.14442765,108880.0,108870.0,0.67437179]
[1749579810413,0.14442765,108880.0,108870.0,0.69087179]
[1749579810833,0.48442765,108880.0,108870.0,0.69087179]
[1749579811049,0.44542765,108880.0,108870.0,0.69087179]
[1749579812067,0.44542765,108880.0,108870.0,0.71087179]
[1749579812497,0.44542765,108880.0,108870.0,0.69437179]
[1749579813094,0.44542765,108880.0,108870.0,0.71087179]
[1749579815360,0.4362434,108880.0,108870.0,0.71087179]
[1749579815767,0.4362434,108880.0,108870.0,0.6375734]
[1749579818007,0.3972434,108880.0,108870.0,0.71091412]
[1749579821029,0.3972434,108880.0,108870.0,0.6375734]
[1749579822290,0.3972434,108880.0,108870.0,0.5113534]
[1749579822494,0.4283434,108880.0,108870.0,0.58467368]
[1749579822710,0.4283434,108880.0,108870.0,0.67915368]
[1749579825144,0.55678931,108880.0,108870.0,0.67915368]
[1749579825349,0.55678931,108880.0,108870.0,0.6058334]
[1749579828395,0.55678931,108880.0,108870.0,0.2058334]
[1749579828801,0.55678931,108880.0,108870.0,0.6058334]
[1749579829312,0.55678931,108880.0,108870.0,0.5113534]
[1749579830433,0.63198222,108880.0,108870.0,0.5113534]
[1749579830653,0.72646222,108880.0,108870.0,0.42]
[1749579831955,0.65126931,108880.0,108870.0,0.02]
[1749579832299,0.65126931,108880.0,108870.0,0.42]
[1749579832706,0.55678931,108880.0,108870.0,0.42]
[1749579834764,0.52568931,108880.0,108870.0,0.42]
[1749579835399,0.52568931,108880.0,108870.0,0.02]
[1749579835833,0.52568931,108880.0,108870.0,0.42]
[1749579837413,0.62822672,108880.0,108870.0,0.42]
[1749579837640,0.64322672,108880.0,108870.0,0.42]
[1749579838940,0.64322672,108880.0,108870.0,0.02]
[1749579839324,0.64322672,108880.0,108870.0,0.42]
[1749579841169,0.52568931,108880.0,108870.0,0.42]
[1749579841373,0.52568931,108880.0,108870.0,0.4353]
[1749579841612,0.52568931,108880.0,108870.0,0.4508]
[1749579842303,0.52568931,108880.0,108870.0,0.0508]
[1749579842929,0.52568931,108880.0,108870.0,0.4508]
[1749579843345,0.60218242,108880.0,108870.0,0.4353]
[1749579843773,0.60218242,108880.0,108870.0,0.42]
[1749579845869,0.60218242,108880.0,108870.0,0.02]
[1749579846287,0.56318242,108880.0,108870.0,0.02]
[1749579846507,0.56318242,108880.0,108870.0,0.42]
[1749579849380,0.56318242,108880.0,108870.0,0.02]
[1749579849804,0.56318242,108880.0,108870.0,0.42]
[1749579850653,0.56318242,108880.0,108870.0,0.4361]
[1749579852146,0.48668931,108880.0,108870.0,0.452]
[1749579853027,0.48668931,108880.0,108870.0,0.052]
[1749579853446,0.48668931,108880.0,108870.0,0.452]
[1749579853869,0.44768931,108880.0,108870.0,0.452]
[1749579856469,0.44768931,108880.0,108870.0,0.052]
[1749579856915,0.44768931,108880.0,108870.0,0.452]
[1749579857843,0.44768931,108880.0,108870.0,0.5433534]
[1749579858506,0.44768931,108880.0,108870.0,0.61667368]
[1749579859595,0.18368931,108880.0,108870.0,0.61667368]
[1749579859800,0.18368931,108880.0,108870.0,0.21667368]
[1749579860459,0.18368931,108880.0,108870.0,0.61667368]